bitfinex/quotes_ETHUSD_20250415
["timestamp","ask_amount","ask_price","bid_price","bid_amount"]
[1744738389676,0.7723,1617.0,1616.8,6.18491]
[1744738390097,0.7723,1617.0,1616.8,12.36985]
[1744738390308,6.18393,1617.1,1616.8,12.36985]
[1744738390683,1.869465,1617.1,1616.7,6.1854]
[1744738391026,6.18446,1617.0,1616.7,6.1854]
[1744738391225,0.81,1616.9,1616.7,6.1853]
[1744738391395,0.81,1616.9,1616.8,6.18505]
[1744738391722,0.81,1616.9,1616.7,6.1853]
[1744738391929,0.81,1616.9,1616.7,12.37061]
[1744738392127,0.81,1616.9,1616.8,6.18505]
[1744738392363,0.767,1617.1,1616.9,12.36904]
[1744738392510,0.767,1617.1,1616.9,6.18451]
[1744738393139,6.294,1617.2,1617.0,6.18417]
[1744738393343,0.795,1617.4,1616.9,6.18455]
[1744738393545,6.18356,1617.2,1616.9,6.18455]
[1744738393743,6.18356,1617.2,1616.9,12.36912]
[1744738394460,6.97732,1617.1,1616.8,6.18504]
[1744738394624,13.1614,1617.1,1616.8,6.18504]
[1744738394822,13.16142,1617.1,1616.8,6.18504]
[1744738395023,6.18429,1617.0,1616.7,7.422381]
[1744738395264,6.18524,1616.8,1616.4,6.18655]
[1744738395558,0.7933,1616.7,1616.4,6.18655]
[1744738395960,0.7933,1616.7,1616.3,0.8317]
[1744738395961,0.7933,1616.7,1616.5,6.1861]
[1744738396113,0.7933,1616.7,1616.6,0.61861]
[1744738396314,0.7933,1616.7,1616.5,6.18609]
[1744738396513,0.7933,1616.7,1616.5,6.18608]
[1744738396749,0.7933,1616.7,1616.5,12.37216]
[1744738397057,0.7933,1616.7,1616.5,6.18608]
[1744738397933,0.7933,1616.7,1616.5,12.37216]
[1744738398132,0.7933,1616.7,1616.5,13.609376]
[1744738398334,6.96619,1616.8,1616.5,7.423296]
[1744738398550,0.781,1616.8,1616.5,7.48519339]
[1744738398863,6.96608,1616.8,1616.5,13.67128339]
[1744738399058,6.96608,1616.8,1616.5,7.423306]
[1744738399751,6.96608,1616.8,1616.5,7.423276]
[1744738400149,13.15129,1616.8,1616.5,6.18606]
[1744738400354,6.96608,1616.8,1616.5,12.37214]
[1744738400769,6.96608,1616.8,1616.5,6.18606]
[1744738400971,13.15137,1616.8,1616.5,6.18606]
[1744738401141,6.96608,1616.8,1616.5,6.18606]
[1744738401343,0.781,1616.8,1616.6,6.18571]
[1744738401553,6.96606,1616.8,1616.5,12.990766]
[1744738401779,0.781,1616.8,1616.6,6.18559]
[1744738401983,0.781,1616.8,1616.6,12.3713]
[1744738402488,6.94647,1616.9,1616.6,12.3713]
[1744738402690,6.94647,1616.9,1616.6,6.18559]
[1744738402985,13.13129,1616.9,1616.6,6.18559]
[1744738403189,0.7617,1616.9,1616.7,6.18543]
[1744738403397,0.7963,1617.1,1616.6,7.54670976]
[1744738403570,11.6806,1617.2,1616.9,6.18438]
[1744738403749,11.6806,1617.2,1616.9,12.36895]
[1744738404496,17.86444,1617.2,1616.9,6.18438]
[1744738405002,6.18398,1617.1,1616.8,6.18502]
[1744738405146,6.18398,1617.1,1616.7,13.18632]
[1744738405481,0.789,1617.0,1616.8,6.18501]
[1744738405657,0.789,1617.0,1616.8,6.18495]
[1744738405855,18.65333,1617.2,1616.9,6.18467]
[1744738406985,12.46965,1617.2,1616.9,6.99066]
[1744738407188,6.286,1617.2,1616.9,13.17521]
[1744738407402,6.286,1617.2,1617.0,7.501791]
[1744738408124,6.286,1617.2,1616.3,0.8061]
[1744738408125,0.7879,1616.8,1616.3,0.8061]
[1744738408415,0.7879,1616.2,1615.7,11.99518]
[1744738408613,6.1879,1616.1,1615.7,6.99518]
[1744738408908,6.1879,1616.1,1615.7,13.18426]
[1744738409055,6.97525,1616.2,1615.8,7.507216]
[1744738409261,0.7879,1616.2,1616.0,6.18796]
[1744738409617,0.7879,1616.2,1615.9,6.18845]
[1744738409759,6.97529,1616.2,1615.9,6.18845]
[1744738410564,0.7879,1616.2,1615.9,6.18845]
[1744738410765,0.7879,1616.2,1615.9,6.9391376]
[1744738411465,5.497,1616.3,1616.0,6.24997468]
[1744738411681,6.18752,1616.2,1616.0,0.06187468]
[1744738411881,11.68434,1616.3,1616.0,0.06187468]
[1744738412105,6.18752,1616.2,1616.0,0.06187468]
[1744738412317,6.18752,1616.2,1615.9,0.7506876]
[1744738412671,5.497,1616.3,1616.0,6.18811]
[1744738412865,5.497,1616.3,1616.0,7.50082476]
[1744738413069,13.17905,1616.6,1616.0,2.12851476]
[1744738413422,13.17905,1616.6,1616.0,0.8158]
[1744738413595,13.17905,1616.6,1616.2,6.18727]
[1744738413596,6.99304,1616.6,1616.2,6.18727]
[1744738413782,13.17916,1616.6,1616.2,6.18727]
[1744738414315,6.18622,1616.5,1616.1,6.18771]
[1744738414484,6.1866,1616.4,1616.1,1.924157]
[1744738414946,12.37274,1616.5,1616.1,1.924157]
[1744738415101,6.18659,1616.4,1616.1,1.924157]
[1744738415508,6.18659,1616.4,1616.0,7.00376]
[1744738415876,12.37341,1616.4,1616.0,7.00376]
[1744738416112,6.18706,1616.3,1616.0,0.8158]
[1744738416319,13.17566,1616.3,1615.9,6.18831]
[1744738416717,13.17566,1616.3,1615.8,13.02964]
[1744738416718,6.18757,1616.2,1615.8,13.02964]
[1744738416919,6.18757,1616.2,1615.8,14.632604]
[1744738417284,6.18757,1616.2,1615.8,9.134604]
[1744738417490,6.18787,1616.1,1615.7,6.18925]
[1744738417687,6.18787,1616.1,1615.7,12.44026475]
[1744738417908,6.98827,1616.3,1615.9,6.18838]
[1744738418204,6.18741,1616.2,1615.8,6.73882]
[1744738418387,6.18741,1616.2,1615.8,8.031624]
[1744738418711,6.98827,1616.3,1615.8,8.031464]
[1744738418915,6.98827,1616.3,1615.9,7.04299521]
[1744738419112,6.98827,1616.3,1615.9,7.04296521]
[1744738419318,13.1755,1616.3,1615.9,6.98109]
[1744738419612,13.1755,1616.3,1615.9,8.4823664]
[1744738419816,6.98827,1616.3,1615.9,8.54424163]
[1744738420011,6.98827,1616.3,1616.0,6.18811]
[1744738420216,6.98827,1616.3,1615.9,8.4823664]
[1744738420416,6.98827,1616.3,1615.9,8.54424158]
[1744738421533,6.98827,1616.3,1615.9,14.73258158]
[1744738421702,6.98827,1616.3,1615.9,8.4823664]
[1744738422033,6.98827,1616.3,1615.9,8.54424165]
[1744738422235,6.18737,1616.2,1615.9,2.2940764]
[1744738422424,6.18786,1616.1,1615.9,1.5012764]
[1744738422602,6.18737,1616.2,1615.8,6.18885]
[1744738422936,6.18774,1616.1,1615.7,7.00034]
[1744738423099,12.3757,1616.1,1615.7,7.00034]
[1744738423486,12.37572,1616.1,1615.7,7.00034]
[1744738423685,6.18814,1616.0,1615.7,13.18948]
[1744738423887,6.18814,1616.0,1615.7,14.563428]
[1744738424136,13.1887,1616.0,1615.7,8.374288]
[1744738424343,0.8123,1616.0,1615.5,6.18982]
[1744738424483,6.18899,1615.8,1615.5,6.18982]
[1744738424684,6.18899,1615.8,1615.4,6.97489]
[1744738424888,6.1894,1615.7,1615.4,6.97489]
[1744738425085,6.18972,1615.6,1615.4,1.316568]
[1744738425310,12.37975,1615.6,1615.2,18.66923]
[1744738425735,12.37975,1615.6,1615.3,6.19077]
[1744738425903,6.18972,1615.6,1615.3,12.4433502]
[1744738426108,7.01245,1615.7,1615.3,6.19068]
[1744738426327,7.01245,1615.7,1615.3,6.25258021]
[1744738426523,6.18965,1615.6,1615.3,12.44326021]
[1744738426838,6.18965,1615.6,1615.3,14.25439602]
[1744738427044,7.01245,1615.7,1615.3,1.87303602]
[1744738427045,0.8231,1615.7,1615.3,1.87303602]
[1744738427350,6.19056,1615.4,1615.1,6.24155]
[1744738427648,6.95316,1615.4,1615.1,6.24155]
[1744738427807,6.19103,1615.3,1615.1,0.05]
[1744738428147,6.97188,1615.2,1615.1,0.05]
[1744738428295,8.288171,1615.2,1615.1,0.05]
[1744738428732,6.19156,1615.1,1615.0,0.55]
[1744738429109,8.288171,1615.2,1615.0,0.55]
[1744738429348,6.19156,1615.1,1615.0,0.55]
[1744738429897,6.96216,1615.1,1615.0,0.55]
[1744738430120,8.4091231,1615.1,1615.0,0.55]
[1744738430529,11.4091231,1615.1,1615.0,0.55]
[1744738432207,11.4091231,1615.1,1614.6,0.4148994]
[1744738432208,7.0115,1614.7,1614.6,0.4148994]
[1744738432419,16.0615,1614.7,1614.6,9.4e-06]
[1744738432618,16.0615,1614.7,1614.2,0.005]
[1744738432619,7.01303,1614.3,1614.2,0.005]
[1744738432799,0.8184,1614.3,1614.2,0.005]
[1744738433205,0.8139,1614.5,1614.3,6.19427]
[1744738433534,3.0,1614.7,1614.3,6.19427]
[1744738433535,6.19355,1614.6,1614.3,6.19427]
[1744738434134,12.47323,1614.7,1614.3,12.38877]
[1744738434135,18.66652,1614.7,1614.3,12.38877]
[1744738434350,6.1935,1614.6,1614.2,6.19997]
[1744738434509,8.146652,1614.7,1614.4,6.19392]
[1744738435106,14.339762,1614.7,1614.3,6.19455]
[1744738435409,0.779,1614.7,1614.5,6.1938]
[1744738435608,0.779,1614.7,1614.4,6.19413]
[1744738435820,0.779,1614.7,1614.4,12.38824]
[1744738436002,0.779,1614.7,1614.5,6.19367]
[1744738436203,0.779,1614.7,1614.4,12.38825]
[1744738436426,0.779,1614.7,1614.4,6.19386]
[1744738436625,0.779,1614.7,1614.5,6.19381]
[1744738437239,5.501,1614.9,1614.6,6.19337]
[1744738437539,5.501,1614.9,1614.5,6.97199]
[1744738437540,11.69348,1614.9,1614.5,6.97199]
[1744738437703,11.69348,1614.9,1614.5,6.97193]
[1744738437908,11.69348,1614.9,1614.5,13.16564]
[1744738438110,6.19273,1614.8,1614.5,13.16563]
[1744738438313,6.19273,1614.8,1614.5,6.97191]
[1744738438511,12.38576,1614.8,1614.4,6.19417]
[1744738438826,12.38653,1614.7,1614.3,6.96723]
[1744738439025,6.95661,1614.6,1614.2,6.19993]
[1744738439210,6.95661,1614.6,1614.2,12.39479]
[1744738440041,6.95661,1614.6,1614.2,6.19986]
[1744738440212,6.19412,1614.5,1614.2,0.005]
[1744738440420,6.19441,1614.4,1614.2,0.005]
[1744738440631,7.433247,1614.4,1614.2,0.005]
[1744738440946,1.238837,1614.4,1614.3,6.19463]
[1744738441142,6.19397,1614.5,1614.2,6.19994]
[1744738441347,6.19397,1614.5,1614.2,12.39481]
[1744738441503,13.15037,1614.6,1614.2,12.39481]
[1744738442068,6.95653,1614.6,1614.3,6.19461]
[1744738442243,0.763,1614.6,1614.3,6.19442]
[1744738442460,8.202566,1614.6,1614.3,6.19442]
[1744738443156,8.202566,1614.6,1614.2,13.18032]
[1744738443157,14.396246,1614.6,1614.2,13.18032]
[1744738443326,8.202566,1614.6,1614.3,6.19461]
[1744738444012,8.202566,1614.6,1614.2,6.98532]
[1744738444013,6.19388,1614.5,1614.2,6.19992]
[1744738444209,6.19388,1614.5,1614.2,6.19989]
[1744738444567,9.9296248,1614.8,1614.4,0.7983]
[1744738444568,6.9296948,1614.8,1614.4,0.7983]
[1744738444866,12.3867,1614.7,1614.3,6.19446]
[1744738445058,6.19445,1614.4,1614.2,0.005]
[1744738446177,6.96323,1614.3,1614.2,0.005]
[1744738446369,15.91959122,1614.3,1614.2,0.005]
[1744738446678,26.37861596,1614.3,1614.2,1e-05]
[1744738446971,6.97057,1613.9,1613.8,0.005]
[1744738447127,12.47457,1613.9,1613.8,0.005]
[1744738447777,6.1954,1614.1,1613.8,6.32587944]
[1744738447778,0.7744,1614.1,1613.8,6.32587944]
[1744738447984,12.49237,1614.4,1613.9,0.8265]
[1744738448277,0.794,1614.6,1614.4,6.19421]
[1744738448573,11.84928,1614.7,1614.5,0.12061741]
[1744738448832,17.9942396,1614.7,1614.5,0.12061741]
[1744738448951,17.9942196,1614.7,1614.3,12.38901]
[1744738449153,11.84926,1614.7,1614.6,0.11791435]
[1744738449365,5.656,1614.7,1614.4,6.19413]
[1744738449564,5.656,1614.7,1614.6,0.11785747]
[1744738449777,5.656,1614.7,1614.5,6.31213354]
[1744738449948,11.84924,1614.7,1614.6,0.11759095]
[1744738450277,17.9941996,1614.7,1614.4,6.19423]
[1744738450451,11.8009596,1614.7,1614.6,0.11776863]
[1744738450651,11.8009596,1614.7,1614.5,0.11823469]
[1744738450846,11.8009596,1614.7,1614.6,0.11776863]
[1744738450847,24.1877296,1614.7,1614.6,0.11776863]
[1744738451078,24.1877296,1614.7,1614.4,6.19421]
[1744738451079,17.9943296,1614.7,1614.4,6.19421]
[1744738451380,17.9943296,1614.7,1614.5,0.11823469]
[1744738451880,6.19272,1614.8,1614.5,0.90768161]
[1744738452078,6.19326,1614.7,1614.5,0.14048704]
[1744738452288,12.38668,1614.7,1614.5,0.14048704]
[1744738452494,6.19326,1614.7,1614.3,6.95466]
[1744738452668,13.17369,1614.7,1614.6,0.14048704]
[1744738452869,8.297629,1614.7,1614.3,13.14911]
[1744738453071,6.9801,1614.7,1614.6,0.14048704]
[1744738453270,6.19349,1614.6,1614.3,0.7602]
[1744738453475,6.19406,1614.5,1614.2,6.19464]
[1744738453678,12.38817,1614.5,1614.1,6.99167]
[1744738453986,12.38811,1614.5,1614.1,13.18695]
[1744738454181,6.19405,1614.5,1614.2,6.19478]
[1744738454383,6.98024,1614.7,1614.2,0.06194558]
[1744738454681,13.17138,1614.9,1614.5,6.19365]
[1744738454883,6.19273,1614.8,1614.5,6.19365]
[1744738455070,12.38563,1614.8,1614.5,6.19365]
[1744738455275,6.19273,1614.8,1614.5,6.19365]
[1744738455471,6.19284,1614.8,1614.5,6.19365]
[1744738455674,0.7864,1614.9,1614.5,12.38716]
[1744738455857,6.97887,1614.9,1614.6,6.19345]
[1744738456053,0.7871,1615.1,1614.9,6.19221]
[1744738456415,11.84723,1615.2,1614.8,6.19257]
[1744738456686,11.84723,1615.2,1614.7,6.19301]
[1744738456687,6.19164,1615.1,1614.7,6.19301]
[1744738456848,6.76178999,1615.1,1614.7,6.19295]
[1744738457047,12.95355999,1615.1,1614.8,6.19259]
[1744738457287,6.19197,1615.0,1614.7,6.891265]
[1744738457496,6.76178999,1615.1,1614.7,13.084245]
[1744738457685,6.97794,1615.3,1614.7,0.698295]
[1744738457890,13.16908,1615.3,1614.9,12.38424]
[1744738458064,13.16892,1615.3,1614.9,13.20484]
[1744738458264,13.16892,1615.3,1614.9,7.01264]
[1744738458265,6.76180832,1615.2,1614.9,7.01264]
[1744738458462,6.19191,1615.1,1614.7,7.01355]
[1744738458689,6.19127,1615.2,1614.9,6.19217]
[1744738458890,6.19127,1615.2,1614.8,6.19263]
[1744738459192,6.19168,1615.1,1614.8,13.086583]
[1744738459388,6.19168,1615.1,1614.8,6.893953]
[1744738459594,0.7871,1615.3,1615.0,6.1916]
[1744738460086,0.7871,1615.3,1614.9,6.19226]
[1744738460087,6.76169908,1615.2,1614.9,6.19226]
[1744738460293,6.19171,1615.1,1614.8,6.19263]
[1744738460796,6.19158,1615.1,1614.8,6.19259]
[1744738460996,6.19158,1615.1,1614.7,7.01359]
[1744738461197,6.19209,1615.0,1614.7,13.20655]
[1744738461360,12.38428,1615.0,1614.7,7.01356]
[1744738461555,6.19209,1615.0,1614.7,13.20653]
[1744738461859,6.19165,1615.1,1614.8,6.19258]
[1744738462479,6.19198,1615.0,1614.7,8.334243]
[1744738462684,12.38265,1615.2,1614.8,6.1927]
[1744738463085,12.38265,1615.2,1614.9,6.19231]
[1744738463086,12.38259,1615.2,1614.9,6.19231]
[1744738463361,6.19157,1615.1,1614.8,6.1927]
[1744738463898,6.19157,1615.1,1614.8,12.38529]
[1744738464403,6.19126,1615.2,1614.8,12.38529]
[1744738464901,0.7871,1615.3,1615.0,6.19183]
[1744738465061,0.7911,1615.5,1615.4,6.19041]
[1744738465260,0.7911,1615.5,1615.1,6.25347328]
[1744738465261,12.63563,1615.7,1615.3,6.19073]
[1744738465461,6.18969,1615.6,1615.2,6.19106]
[1744738465894,12.63547,1615.7,1615.3,6.1907]
[1744738466076,12.63547,1615.7,1615.0,0.7805]
[1744738466077,0.57049657,1615.6,1615.4,6.1902]
[1744738466288,0.57049657,1615.6,1615.5,6.19003]
[1744738466470,0.7876,1615.9,1615.4,6.80922]
[1744738466671,9.7569368,1616.0,1615.4,6.80922]
[1744738466672,4.1029368,1616.0,1615.6,6.96224]
[1744738466873,16.4797568,1616.0,1615.6,6.96224]
[1744738467086,0.57028652,1615.9,1615.7,6.18903]
[1744738467399,6.18862,1615.9,1615.6,6.9623]
[1744738467562,16.4795668,1616.0,1615.6,6.96223]
[1744738467770,4.1029368,1616.0,1615.7,12.37842]
[1744738467965,4.1029368,1616.0,1615.8,6.18877]
[1744738468181,7.01355,1616.1,1615.8,6.18877]
[1744738468388,7.01355,1616.1,1616.0,6.18811]
[1744738468389,0.8258,1616.1,1616.0,6.18811]
[1744738468605,0.05,1616.4,1616.2,6.18723]
[1744738470064,0.05,1616.4,1616.1,6.18766]
[1744738470398,6.18728,1616.3,1615.9,12.37669]
[1744738470706,12.42339,1616.4,1616.0,12.37602]
[1744738471023,12.42352,1616.4,1616.0,12.37592]
[1744738471170,0.05,1616.4,1616.1,6.18749]
[1744738471405,0.05,1616.4,1616.2,6.18732]
[1744738471613,6.23676,1616.4,1616.1,6.96719]
[1744738472040,6.23676,1616.4,1616.1,13.15477]
[1744738472237,6.23676,1616.4,1616.1,6.96719]
[1744738472623,0.05,1616.4,1616.2,6.18719]
[1744738473423,0.05,1616.4,1616.1,6.96731]
[1744738473646,0.05,1616.4,1616.2,6.18722]
[1744738474555,0.05,1616.4,1616.1,0.7797]
[1744738474868,6.1874,1616.2,1615.9,6.95848]
[1744738475461,12.37501,1616.2,1615.9,6.95848]
[1744738475606,0.05,1616.4,1616.0,6.18785]
[1744738475811,0.05,1616.4,1615.8,6.18864]
[1744738476014,6.1876,1616.2,1615.9,6.18838]
[1744738476325,6.1876,1616.2,1615.9,12.37673]
[1744738476953,6.18706,1616.3,1616.0,6.18794]
[1744738477155,12.37421,1616.3,1616.0,6.18794]
[1744738477365,0.05,1616.4,1616.0,7.02943614]
[1744738477662,0.05,1616.4,1616.2,12.37437]
[1744738477840,0.05,1616.4,1616.2,6.18717]
[1744738478227,0.05,1616.4,1616.2,12.3744]
[1744738478426,0.05,1616.4,1616.2,12.37439]
[1744738478661,0.05,1616.4,1616.1,6.89057361]
[1744738478960,6.2367,1616.4,1616.1,6.89057361]
[1744738479962,6.18697,1616.3,1616.0,6.96751]
[1744738481248,6.18697,1616.3,1616.0,13.1555]
[1744738481556,12.42346,1616.4,1616.1,6.18767]
[1744738481763,0.05,1616.4,1616.1,6.18761]
[1744738481942,6.1871,1616.3,1616.0,6.96754]
[1744738482250,6.1871,1616.3,1616.0,6.96748]
[1744738482575,6.1871,1616.3,1616.0,6.96759]
[1744738482710,12.37425,1616.3,1616.0,8.04307545]
[1744738482910,6.1871,1616.3,1616.0,8.04307545]
[1744738483148,6.1871,1616.3,1616.0,7.26357545]
[1744738483306,6.1874,1616.2,1616.0,1.07548545]
[1744738483756,6.1871,1616.3,1616.0,1.07548545]
[1744738483974,12.37439,1616.3,1616.0,1.07548545]
[1744738484275,12.37418,1616.3,1615.8,16.75124]
[1744738484468,6.18735,1616.2,1615.8,10.56247]
[1744738484643,7.01385,1616.2,1615.8,7.56247]
[1744738484842,0.8265,1616.2,1615.8,0.8237]
[1744738485042,6.18811,1616.0,1615.4,1.38782]
[1744738485239,6.18809,1616.1,1615.4,1.38782]
[1744738485240,6.189,1615.8,1615.4,7.578]
[1744738485562,6.189,1615.8,1615.4,13.83017285]
[1744738485563,12.37804,1615.8,1615.4,13.83017285]
[1744738485729,6.18944,1615.7,1615.4,1.38782]
[1744738485929,12.37887,1615.7,1615.4,1.38782]
[1744738486132,6.18943,1615.7,1615.4,1.38782]
[1744738486334,6.19068,1615.4,1615.2,0.7834]
[1744738486541,6.19156,1615.1,1615.0,0.7834]
[1744738486741,12.38438,1615.0,1614.6,6.19326]
[1744738486940,6.19216,1615.0,1614.6,13.16997]
[1744738487265,6.19238,1614.9,1614.7,1.316997]
[1744738487441,6.19214,1615.0,1614.7,1.316997]
[1744738487638,6.19214,1615.0,1614.6,6.97682]
[1744738487840,12.38446,1615.0,1614.6,6.97682]
[1744738488764,6.19234,1614.9,1614.6,6.97682]
[1744738488963,6.19214,1615.0,1614.6,13.17017]
[1744738489265,12.38432,1615.0,1614.6,13.17011]
[1744738489462,12.38432,1615.0,1614.7,1.317011]
[1744738489662,6.19235,1614.9,1614.7,1.317011]
[1744738489864,6.19214,1615.0,1614.7,1.317011]
[1744738490115,6.19182,1615.1,1614.6,0.7834]
[1744738490236,6.1931,1614.7,1614.4,6.96372]
[1744738491274,12.67635,1615.0,1614.4,6.96372]
[1744738491275,6.4844,1615.0,1614.5,0.06193254]
[1744738491569,0.81,1615.2,1614.8,12.385]
[1744738491771,13.1927,1615.2,1614.8,6.19246]
[1744738491965,12.38382,1615.1,1614.7,13.20754]
[1744738492375,6.1919,1615.1,1614.7,7.01446]
[1744738492663,6.19196,1615.0,1614.7,13.26933257]
[1744738492876,6.19196,1615.0,1614.7,7.01445]
[1744738493045,6.19196,1615.0,1614.7,7.07637257]
[1744738493448,8.88693,1615.2,1614.7,2.21040683]
[1744738493653,7.00126,1615.2,1614.9,6.19215]
[1744738494453,0.81,1615.2,1614.6,6.1933]
[1744738494670,12.38462,1615.0,1614.6,6.1933]
[1744738494888,6.19157,1615.1,1614.8,6.19233]
[1744738495509,6.19157,1615.1,1614.8,6.1927]
[1744738495801,12.3833,1615.1,1614.8,6.1927]
[1744738496007,6.19201,1615.0,1614.7,6.19302]
[1744738496186,6.19201,1615.0,1614.7,6.19298]
[1744738496360,12.38416,1615.0,1614.6,6.1934]
[1744738496555,6.19201,1615.0,1614.7,6.19309]
[1744738497069,12.38412,1615.0,1614.7,6.19309]
[1744738497383,7.51097,1615.1,1614.8,6.19258]
[1744738497599,0.81,1615.2,1614.8,6.19259]
[1744738497789,13.19265,1615.2,1614.9,6.19212]
[1744738498170,6.1916,1615.1,1614.8,7.0007]
[1744738498485,6.1916,1615.1,1614.8,7.00069]
[1744738498659,6.19125,1615.2,1614.8,0.8081]
[1744738498859,12.38261,1615.2,1614.9,6.19207]
[1744738499076,12.38257,1615.2,1614.9,6.19207]
[1744738499255,6.19082,1615.3,1614.9,6.19207]
[1744738499455,6.19122,1615.2,1614.9,12.38429]
[1744738500555,6.19122,1615.2,1614.9,6.19207]
[1744738500789,12.38258,1615.2,1614.9,6.19207]
[1744738500990,12.38278,1615.2,1614.9,6.19233]
[1744738501160,6.19122,1615.2,1614.9,6.19233]
[1744738501491,6.19122,1615.2,1614.9,12.38454]
[1744738501690,6.1909,1615.3,1615.0,6.19182]
[1744738501993,12.38185,1615.3,1615.0,6.19182]
[1744738502193,6.19169,1615.1,1614.8,7.00071]
[1744738502364,6.19124,1615.2,1614.9,6.19222]
[1744738502891,12.38255,1615.2,1614.9,6.19222]
[1744738503190,6.19124,1615.2,1614.9,12.38443]
[1744738503691,6.19124,1615.2,1614.8,7.00068]
[1744738503989,6.19124,1615.2,1614.9,6.19211]
[1744738504185,6.1909,1615.3,1614.9,6.19211]
[1744738504558,6.19118,1615.2,1614.9,6.19211]
[1744738504758,6.19118,1615.2,1614.9,12.38434]
[1744738505391,5.665,1615.9,1615.4,6.19011]
[1744738505688,18.81972,1615.9,1615.5,12.44144743]
[1744738505879,6.18888,1615.8,1615.5,12.37984]
[1744738506081,6.18888,1615.8,1615.5,6.18992]
[1744738506286,6.18888,1615.8,1615.5,12.37982]
[1744738506587,6.18899,1615.8,1615.5,6.18991]
[1744738506802,18.81998,1615.9,1615.5,13.75731642]
[1744738506998,6.18904,1615.8,1615.5,7.505504]
[1744738507296,6.18904,1615.8,1615.5,1.315594]
[1744738507511,12.37885,1615.7,1615.4,6.96602]
[1744738508073,6.18937,1615.7,1615.4,6.96602]
[1744738508271,12.37879,1615.7,1615.4,6.96602]
[1744738508474,12.37879,1615.7,1615.3,12.38136]
[1744738508890,6.18937,1615.7,1615.4,6.25217742]
[1744738509204,6.19017,1615.5,1615.2,0.8091]
[1744738509406,0.7901,1615.6,1615.3,0.0619005]
[1744738509591,5.665,1615.9,1614.9,11.61866122]
[1744738509592,6.19129,1615.2,1614.9,6.19201]
[1744738509903,6.19129,1615.2,1614.8,6.97079]
[1744738509904,6.19157,1615.1,1614.8,6.97079]
[1744738510122,12.38284,1615.2,1614.8,12.38518]
[1744738510310,12.38284,1615.2,1614.6,6.4082]
[1744738510311,7.508584,1615.2,1614.9,6.19229]
[1744738510512,6.981,1615.3,1615.0,0.06191957]
[1744738510513,0.7901,1615.3,1615.0,0.06191957]
[1744738510716,6.19085,1615.3,1615.0,0.7802]
[1744738510888,6.19053,1615.4,1615.1,6.19136]
[1744738511088,6.19053,1615.4,1615.1,12.38281]
[1744738511707,18.72858,1615.5,1615.2,6.19117]
[1744738511910,14.501438,1615.5,1615.2,6.19117]
[1744738512211,20.691678,1615.5,1615.2,6.19117]
[1744738512413,6.19044,1615.4,1615.1,6.19145]
[1744738512622,12.38117,1615.4,1615.1,6.19145]
[1744738513006,6.19097,1615.3,1615.0,6.97208]
[1744738513207,6.19097,1615.3,1615.0,13.16391]
[1744738513408,6.19048,1615.4,1615.1,6.19141]
[1744738513581,6.19048,1615.4,1615.1,12.38287]
[1744738514017,0.8085,1615.5,1615.1,1.866307]
[1744738514200,3.81428731,1615.9,1615.5,12.37983]
[1744738514201,0.7589,1615.7,1615.5,12.37983]
[1744738514404,6.18897,1615.8,1615.5,6.1899]
[1744738514712,12.37816,1615.8,1615.5,6.1899]
[1744738515303,0.7589,1615.9,1615.5,0.06189782]
[1744738515479,13.1363,1615.9,1615.6,6.18949]
[1744738515676,8.82419,1615.9,1615.6,6.18949]
[1744738515910,15.01298,1615.9,1615.6,6.18949]
[1744738516112,2.63553,1615.9,1615.4,6.19037]
[1744738516316,12.37879,1615.7,1615.4,6.1903]
[1744738516516,6.18971,1615.6,1615.3,13.18695]
[1744738516722,6.18936,1615.7,1615.3,0.8056]
[1744738517016,0.7589,1615.9,1615.5,6.18969]
[1744738517017,6.94763,1615.9,1615.5,6.18969]
[1744738517320,13.13644,1615.9,1615.6,6.18946]
[1744738517516,6.18899,1615.8,1615.5,6.18992]
[1744738517687,6.18899,1615.8,1615.5,12.37985]
[1744738517887,8.824104,1615.9,1615.6,6.18951]
[1744738518086,8.824104,1615.9,1615.6,6.18952]
[1744738518289,8.824104,1615.9,1615.5,12.37984]
[1744738518495,15.012974,1615.9,1615.6,6.18962]
[1744738519221,2.635544,1615.9,1615.6,6.18962]
[1744738519521,6.94741,1615.9,1615.6,12.37915]
[1744738519684,6.94741,1615.9,1615.6,6.18953]
[1744738519883,0.7589,1615.9,1615.5,6.18996]
[1744738520085,6.18907,1615.8,1615.5,6.18996]
[1744738520592,6.18963,1615.7,1615.4,6.19033]
[1744738520797,6.97385,1615.6,1615.3,6.19069]
[1744738521014,6.97385,1615.6,1615.3,12.38137]
[1744738521822,6.97385,1615.6,1615.3,12.38135]
[1744738522193,0.7842,1615.6,1615.4,6.19039]
[1744738522393,0.7603,1615.8,1615.5,6.18985]
[1744738522596,0.7603,1615.8,1615.6,6.18953]
[1744738522812,18.76688,1616.0,1615.7,6.18926]
[1744738522990,6.18851,1615.9,1615.6,12.37908]
[1744738523491,6.18851,1615.9,1615.6,6.18953]
[1744738523691,6.18851,1615.9,1615.6,12.37908]
[1744738523892,18.76678,1616.0,1615.7,6.18918]
[1744738524094,48.262,1616.1,1615.9,6.1885]
[1744738524308,12.57973,1616.2,1615.9,12.37688]
[1744738524507,6.95073,1616.2,1615.9,6.18838]
[1744738524725,6.18801,1616.1,1615.7,7.00536]
[1744738524920,6.18821,1616.0,1615.7,7.00536]
[1744738525421,6.18775,1616.1,1615.5,6.95883]